{"text_format":"3","workbook":"xlsx","n_sheets":1,"sheets":["прилож. № 7"],"read":"whole","date_system":"1900"}

{"sheet":"прилож. № 7","index":0,"n_rows":219,"n_cols":8,"rows_kept":219,"merged":[[0,0,0,5],[1,0,1,5],[2,1,2,5],[3,0,3,5]]}
["                                                                                    Приложение № 2"]
["   к  решению Думы Ушаковского муниципального образования от   26.07.2018 г. №__                                                                                                                                     \"О внесении изменений в решение Думы Ушаковского муниципального образования № 66 от 08.12.2017г. \"Об утверждении бюджета на 2018 г. и на плановый период 2019-2020 годов\"                                                                                                                                                                                                                                        "]
[]
["РАСПРЕДЕЛЕНИЕ БЮДЖЕТНЫХ АССИГНОВАНИЙ  ПО РАЗДЕЛАМ, ПОДРАЗДЕЛАМ, ЦЕЛЕВЫМ СТАТЬЯМ (МУНИЦИПАЛЬНЫМ ПРОГРАММАМ И НЕПРОГРАММНЫМ НАПРАВЛЕНИЯМ ДЕЯТЕЛЬНОСТИ) И ВИДАМ РАСХОДОВ КЛАССИФИКАЦИИ РАСХОДОВ БЮДЖЕТОВ НА 2018 ГОД"]
[]
["Наименование","РЗ","Пр","КЦСР","КВР","Сумма         (тыс. руб)"]
["В С Е Г О",{"$nulls":4},{"$f":"F8+F91+F96+F105+F126+F170+F188+F205","v":87514.4}]
["ОБЩЕГОСУДАРСТВЕННЫЕ ВОПРОСЫ","01","00","00.0.00.00000","000",{"$f":"F9+F41+F80+F33+F87","v":{"v":23433.600000000002,"d":"23433.6"}}]
["Функционирование высшего должностного лица субъекта Российской Федерации и муниципального образования","01","02","00.0.00.00000","000",{"$f":"F10","v":1856.3}]
["Непрограммные расходы органов местного самоуправления","01","02","91.0.00.00000","000",{"$f":"F11+F18","v":1856.3}]
["Непрограммные расходы органов местного самоуправления за счет средств местного бюджета","01","02","91.1.00.00000","000",{"$f":"F12","v":1856.3}]
["Осуществление органами местного самоуправления полномочий местного значения поселения","01","02","91.1.00.60000","000",{"$f":"F13","v":1856.3}]
["Обеспечение деятельности в сфере установленных функций","01","02","91.1.00.60001","000",{"$f":"F16+F17+F32","v":1856.3}]
["Расходы на выплаты персоналу в целях обеспечения выполнения функций государственными (муниципальными) органами, казенными учреждениями, органами управления государственными внебюджетными фондами","01","02","91.1.00.60001","100",{"$f":"F15","v":1856.3}]
["Расходы на выплаты персоналу государственных (муниципальных) органов","01","02","91.1.00.60001","120",{"$f":"F16+F17+F32","v":1856.3}]
["Фонд оплаты труда государственных (муниципальных) органов ","01","02","91.1.00.60001","121",1413.1]
["Взносы по обязательному социальному страхованию на выплаты денежного содержания и иные выплаты работникам государственных (муниципальных) органов","01","02","91.1.00.60001","129",343.2]
["Непрограммные расходы органов местного самоуправления за счет средств областного бюджета","01","02","91.1.00.60003","000",{"$f":"F19","v":{"v":0,"d":"0.0"}}]
["Субсидии на выравнивание обеспеченности муниципальных образований Иркутской области по реализации ими их отдельных расходных обязательств","01","02","91.1.00.60004","000",{"$f":"F20","v":{"v":0,"d":"0.0"}}]
["Расходы на выплаты персоналу в целях обеспечения выполнения функций государственными (муниципальными) органами, казенными учреждениями, органами управления государственными внебюджетными фондами","01","02","91.1.00.60005","100",{"$f":"F21","v":{"v":0,"d":"0.0"}}]
["Расходы на выплаты персоналу государственных (муниципальных) органов","01","02","91.1.00.60006","120",{"$f":"F22+F23","v":{"v":0,"d":"0.0"}}]
["Фонд оплаты труда государственных (муниципальных) органов ","01","02","91.1.00.60007","121",{"v":0,"d":"0.0"}]
["Взносы по обязательному социальному страхованию на выплаты денежного содержания и иные выплаты работникам государственных (муниципальных) органов","01","02","91.1.00.60008","129",{"v":0,"d":"0.0"}]
["Функционирование Правительства Российской Федерации, высших исполнительных органов государственной власти субъектов РФ, местных администраций","01","04","91.1.00.60009","000",{"$f":"F41+F25","v":17857.9}]
["Программные расходы","01","04","91.1.00.60010","000",{"$f":"F26","v":{"v":0,"d":"0.0"}}]
["Муниципальная программа \"Подготовка к празднованию 70-летия победы\"","01","04","91.1.00.60011","000",{"v":0,"d":"0.0"}]
["Реализация мероприятий муниципальной программы за счет средств местного бюджета","01","04","91.1.00.60012","000",{"v":0,"d":"0.0"}]
["Мероприятия, связанные, с подготовкой к празднованию 70-летия победы","01","04","91.1.00.60013","000",{"v":0,"d":"0.0"}]
["Закупка товаров, работ и услуг для обеспечения государственных (муниципальных) нужд","01","04","91.1.00.60014","200",{"v":0,"d":"0.0"}]
["Иные закупки товаров, работ и услуг для обеспечения государственных (муниципальных) нужд","01","04","91.1.00.60015","240",{"v":0,"d":"0.0"}]
["Прочая закупка товаров, работ и услуг для обеспечения государственных (муниципальных) нужд","01","04","91.1.00.60016","244"]
["Иные выплаты персоналу государственных (муниципальных) органов, за исключением фонда оплаты труда","01","02","91.1.00.60001","122",{"v":100,"d":"100.0"}]
["Функционирование законодательных (представительных) органов государственной власти и представительных органов муниципальных образований","01","03","91.1.00.00000","000",765.4]
["Непрограммные расходы органов местного самоуправления за счет средств местного бюджета","01","03","91.1.00.00000","000",765.4]
["Осуществление органами местного самоуправления полномочий местного значения поселения","01","03","91.1.00.60000","000",765.4]
["Обеспечение деятельности в сфере установленных функций","01","03","91.1.00.60001","000",765.4]
["Расходы на выплаты персоналу в целях обеспечения выполнения функций государственными (муниципальными) органами, казенными учреждениями, органами управления государственными внебюджетными фондами","01","03","91.1.00.60001","100",765.4]
["Расходы на выплаты персоналу государственных (муниципальных) органов","01","03","91.1.00.60001","120",{"$f":"F39+F40","v":765.4}]
["Фонд оплаты труда государственных (муниципальных) органов ","01","03","91.1.00.60001","121",587.9]
["Взносы по обязательному социальному страхованию на выплаты денежного содержания и иные выплаты работникам государственных (муниципальных) органов","01","03","91.1.00.60001","129",177.5]
["Непрограммные расходы органов местного самоуправления","01","04","91.0.00.00000","000",{"$f":"F42+F59","v":17857.9}]
["Непрограммные расходы органов местного самоуправления за счет средств местного бюджета","01","04","91.1.00.00000","000",{"$f":"F43","v":17857.2}]
["Осуществление органами местного самоуправления полномочий местного значения поселения","01","04","91.1.00.60000","000",{"$f":"F44","v":17857.2}]
["Обеспечение деятельности в сфере установленных функций","01","04","91.1.00.60001","000",{"$f":"F45+F48+F50+F53","v":17857.2}]
["Расходы на выплаты персоналу в целях обеспечения выполнения функций государственными (муниципальными) органами, казенными учреждениями, органами управления государственными внебюджетными фондами","01","04","91.1.00.60001","100",{"$f":"F46","v":13064.2}]
["Расходы на выплаты персоналу государственных (муниципальных) органов","01","04","91.1.00.60001","120",{"$f":"F47+F49","v":13064.2}]
["Фонд оплаты труда государственных (муниципальных) органов ","01","04","91.1.00.60001","121",{"v":10034,"d":"10034.0"}]
["Иные выплаты персоналу государственных (муниципальных) органов, за исключением фонда оплаты труда","01","04","91.1.00.60002","122",{"v":60,"d":"60.0"}]
["Взносы по обязательному социальному страхованию на выплаты денежного содержания и иные выплаты работникам государственных (муниципальных) органов","01","04","91.1.00.60001","129",3030.2]
["Закупка товаров, работ и услуг для обеспечения государственных (муниципальных) нужд","01","04","91.1.00.60001","200",{"$f":"F51","v":4431.7}]
["Иные закупки товаров, работ и услуг для обеспечения государственных (муниципальных) нужд","01","04","91.1.00.60001","240",{"$f":"F52","v":4431.7}]
["Прочая закупка товаров, работ и услуг для обеспечения государственных (муниципальных) нужд","01","04","91.1.00.60001","244",{"$f":"3716.7-105-100-60-20+1000","v":4431.7}]
["Иные бюджетные ассигнования","01","04","91.1.00.60001","800",{"$f":"F54+F57","v":301.3}]
["Уплата налогов,сборов и иных платежей","01","04","91.1.00.60001","850",{"$f":"F55+F56","v":{"v":71,"d":"71.0"}}]
["Уплата прочих налогов, сборов","01","04","91.1.00.60001","852",{"v":16,"d":"16.0"}]
["Уплата иных платежей","01","04","91.1.00.60001","853",{"$f":"35+20","v":{"v":55,"d":"55.0"}}]
["Исполнение судебных актов","01","04","91.1.00.60001","830",{"$f":"F58","v":230.3}]
[" Исполнение судебных актов Российской Федерации и мировых соглашений по возмещению вреда, причиненного в результате незаконных действий (бездействия) органов государственной власти (государственных органов), органов местного самоуправления либо должностных лиц этих органов, а также в результате деятельности казенных учреждений","01","04","91.1.00.60001","831",{"$f":"125.3+105","v":230.3}]
["Непрограммные расходы органов местного самоуправления за счет средств областного бюджета","01","04","91.2.00.00000","000",{"$f":"F68+F60","v":0.7}]
["Субсидии на выравнивание обеспеченности муниципальных образований Иркутской области по реализации ими их отдельных расходных обязательств","01","04","91.2.00.72600","000",{"$f":"F61+F65","v":{"v":0,"d":"0.0"}}]
["Расходы на выплаты персоналу в целях обеспечения выполнения функций государственными (муниципальными) органами, казенными учреждениями, органами управления государственными внебюджетными фондами","01","04","91.2.00.72600","100",{"$f":"F62","v":{"v":0,"d":"0.0"}}]
["Расходы на выплаты персоналу государственных (муниципальных) органов","01","04","91.2.00.72600","120",{"$f":"F63+F64","v":{"v":0,"d":"0.0"}}]
["Фонд оплаты труда государственных (муниципальных) органов ","01","04","91.2.00.72600","121",{"v":0,"d":"0.0"}]
["Взносы по обязательному социальному страхованию на выплаты денежного содержания и иные выплаты работникам государственных (муниципальных) органов","01","04","91.2.00.72600","129",{"v":0,"d":"0.0"}]
["Иные закупки товаров, работ и услуг для обеспечения государственных (муниципальных) нужд","01","04","91.2.00.72600","200",{"$f":"F66","v":{"v":0,"d":"0.0"}}]
["Прочая закупка товаров, работ и услуг для обеспечения государственных (муниципальных) нужд","01","04","91.2.00.72600","240",{"$f":"F67","v":{"v":0,"d":"0.0"}}]
["Прочая закупка товаров, работ и услуг для обеспечения государственных (муниципальных) нужд","01","04","91.2.00.72600","244",{"v":0,"d":"0.0"}]
["Субвенции на осуществление областного государственного полномочия по определению перечня должностных лиц органов местного самоуправления, уполномоченных составлять протоколы об административных правонарушениях, предусмотренных отдельными законами Иркутской области об административной ответственности","01","04","91.2.00.73150","000",{"$f":"F71","v":0.7}]
["Закупка товаров, работ и услуг для обеспечения государственных (муниципальных) нужд","01","04","91.2.00.73150","200",{"$f":"F70","v":0.7}]
["Иные закупки товаров, работ и услуг для обеспечения государственных (муниципальных) нужд","01","04","91.2.00.73150","240",{"$f":"F71","v":0.7}]
["Прочая закупка товаров, работ и услуг для обеспечения государственных (муниципальных) нужд","01","04","91.2.00.73150","244",0.7]
["Обеспечение проведения выборов и референдумов","01","07","00.0.00.00000","000",{"$f":"F73","v":{"v":0,"d":"0.0"}}]
["Непрограммные расходы органов местного самоуправления","01","07","91.0.00.00000","000",{"v":0,"d":"0.0"}]
["Непрограммные расходы органов местного самоуправления за счет средств местного бюджета","01","07","91.1.00.00000","000",{"v":0,"d":"0.0"}]
["Осуществление органами местного самоуправления полномочий местного значения поселения","01","07","91.1.00.60000","000",{"v":0,"d":"0.0"}]
["Проведения выборов и референдумов","01","07","91.1.00.60003","000",{"v":0,"d":"0.0"}]
["Закупка товаров, работ и услуг для обеспечения государственных (муниципальных) нужд","01","07","91.1.00.60003","200",{"v":0,"d":"0.0"}]
["Иные закупки товаров, работ и услуг для обеспечения государственных (муниципальных) нужд","01","07","91.1.00.60003","240",{"v":0,"d":"0.0"}]
["Прочая закупка товаров, работ и услуг для обеспечения государственных (муниципальных) нужд","01","07","91.1.00.60003","244",{"v":0,"d":"0.0"}]
["Резервные фонды","01","11","00.0.00.00000","000",{"$f":"F81","v":{"v":300,"d":"300.0"}}]
["Непрограммные расходы органов местного самоуправления","01","11","91.1.00.00000","000",{"v":300,"d":"300.0"}]
["Непрограммные расходы органов местного самоуправления за счет средств местного бюджета","01","11","91.1.00.00000","000",{"$f":"F83","v":{"v":300,"d":"300.0"}}]
["Осуществление органами местного самоуправления полномочий местного значения поселения","01","11","91.1.00.60000","000",{"v":300,"d":"300.0"}]
["Резервный фонд администрации муниципального образования","01","11","91.1.00.60004","000",{"v":300,"d":"300.0"}]
["Иные бюджетные ассигнования","01","11","91.1.00.60004","800",{"v":300,"d":"300.0"}]
["Резервные средства","01","11","91.1.00.60004","870",{"v":300,"d":"300.0"}]
["Другие общегосударственные вопросы","01","13","91.1.00.00000","000",{"$f":"F88","v":{"v":2654,"d":"2654.0"}}]
["Расходы на выплату персоналу в целях обеспечения выполнения функций государственными (муниципальными) органами, казенными учреждениями, органами управления государственными внебюджетными фондами","01","13","91.1.00.60002","100",{"$f":"F89+F90","v":{"v":2654,"d":"2654.0"}}]
["Расходы на выплаты персоналу в целях обеспечения выполнения функций государственными (муниципальными) органами, казенными учреждениями, органами управления государственными внебюджетными фондами","01","13","91.1.00.60002","111",2088.1]
["Взносы по обязательному социальному страхованию на выплаты по оплате труда работников и иные выплаты работникам учреждений","01","13","91.1.00.60002","119",565.9]
["НАЦИОНАЛЬНАЯ ОБОРОНА","02","00","00.0.00.00000","000",{"$f":"F92+F93+F94","v":{"v":327.20000000000005,"d":"327.2"}}]
["Мобилизационная и вневойсковая подготовка","02","03","91.3.00.51180","121",228.3]
["Мобилизационная и вневойсковая подготовка","02","03","91.3.00.51180","129",68.9]
["Закупка товаров, работ и услуг для обеспечения государственных (муниципальных) нужд","02","03","91.3.00.51180","200",{"v":30,"d":"30.0"}]
["Иные закупки товаров, работ и услуг для обеспечения государственных (муниципальных) нужд","02","03","91.3.00.51180","240",{"v":30,"d":"30.0"}]
["НАЦИОНАЛЬНАЯ БЕЗОПАСНОСТЬ И ПРАВООХРАНИТЕЛЬНАЯ ДЕЯТЕЛЬНОСТЬ","03","00","00.0.00.00000","000",{"$f":"F97","v":{"v":350,"d":"350.0"}}]
["Обеспечение пожарной безопасности","03","10","00.0.00.00000","000",{"v":350,"d":"350.0"}]
["Непрограммные расходы органов местного самоуправления","03","10","91.0.00.00000","000",{"v":350,"d":"350.0"}]
["Непрограммные расходы органов местного самоуправления за счет средств местного бюджета","03","10","91.1.00.00000","000",{"v":350,"d":"350.0"}]
["Осуществление органами местного самоуправления полномочий местного значения поселения","03","10","91.1.00.60000","000",{"v":350,"d":"350.0"}]
["Реализация других функций, связанных с обеспечением национальной безопасности и правоохранительной деятельности","03","10","91.1.00.60007","000",{"v":350,"d":"350.0"}]
["Закупка товаров, работ и услуг для обеспечения государственных (муниципальных) нужд","03","10","91.1.00.60007","200",{"v":350,"d":"350.0"}]
["Иные закупки товаров, работ и услуг для обеспечения государственных (муниципальных) нужд","03","10","91.1.00.60007","240",{"$f":"F104","v":{"v":350,"d":"350.0"}}]
["Прочая закупка товаров, работ и услуг для обеспечения государственных (муниципальных) нужд","03","10","91.1.00.60007","244",{"v":350,"d":"350.0"}]
["НАЦИОНАЛЬНАЯ ЭКОНОМИКА","04","00","00.0.00.00000","000",{"$f":"F106+F116","v":20262.8}]
["Дорожное хозяйство (дорожные фонды)","04","09","00.0.00.00000","000",{"$f":"F107","v":10559.8}]
["Непрограммные расходы органов местного самоуправления","04","09","91.0.00.00000","000",10559.8]
["Непрограммные расходы органов местного самоуправления за счет средств местного бюджета","04","09","91.1.00.00000","000",10559.8]
["Осуществление органами местного самоуправления полномочий местного значения поселения","04","09","91.1.00.60000","000",{"$f":"F111","v":10559.8}]
["Приобретение материальных и нематериальных активов в сфере установленных функций","04","09","91.1.00.60010","000",{"$f":"F112","v":10559.8}]
["Иные мероприятия и сфере установленных функций","04","09","91.1.00.60011","000",10559.8]
["Закупка товаров, работ и услуг для обеспечения государственных (муниципальных) нужд","04","09","91.1.00.60011","200",10559.8]
["Иные закупки товаров, работ и услуг для обеспечения государственных (муниципальных) нужд","04","09","91.1.00.60011","240",{"$f":"F115+F114","v":10559.8}]
["Закупка товаров, работ, услуг в целях капитального ремонта государственного (муниципального) имущества","04","09","91.1.00.60011","243",{"v":1960,"d":"1960.0"}]
["Прочая закупка товаров, работ и услуг для обеспечения государственных (муниципальных) нужд","04","09","91.1.00.60011","244",{"$f":"5633.8+2966","v":8599.8}]
["Другие вопросы в области национальной экономике","04","12","00.0.00.00000","000",{"$f":"F117","v":{"v":9703,"d":"9703.0"}}]
["Непрограммные расходы органов местного самоуправления","04","12","91.1.00.00000","000",{"v":9703,"d":"9703.0"}]
["Непрограммные расходы органов местного самоуправления за счет средств местного бюджета","04","12","91.1.00.00000","000",{"v":9703,"d":"9703.0"}]
["Осуществление органами местного самоуправления полномочий местного значения поселения","04","12","91.1.00.60000","000",{"$f":"F121","v":{"v":9703,"d":"9703.0"}}]
["Приобретение материальных и нематериальных активов в сфере установленных функций","04","12","91.1.00.60010","000",{"v":9703,"d":"9703.0"}]
["Иные мероприятия и сфере установленных функций","04","12","91.1.00.60011","000",{"v":9703,"d":"9703.0"}]
["Закупка товаров, работ и услуг для обеспечения государственных (муниципальных) нужд","04","12","91.1.00.60011","200",{"v":9703,"d":"9703.0"}]
["Иные закупки товаров, работ и услуг для обеспечения государственных (муниципальных) нужд","04","12","91.1.00.60011","240",{"$f":"F125+F124","v":{"v":9703,"d":"9703.0"}}]
["Закупка товаров, работ, услуг в целях капитального ремонта государственного (муниципального) имущества","04","12","91.1.00.60011","243",873.7]
["Прочая закупка товаров, работ и услуг для обеспечения государственных (муниципальных) нужд","04","12","91.1.00.60011","244",8829.3]
["ЖИЛИЩНО-КОММУНАЛЬНОЕ ХОЗЯЙСТВО","05","00","00.0.00.00000","000",{"$f":"F127+F135+F144","v":{"v":23589.699999999997,"d":"23589.7"}}]
["Жилищное хозяйство","05","01","00.0.00.00000","000",{"$f":"F128","v":{"v":6040,"d":"6040.0"}}]
["Непрограммные расходы органов местного самоуправления","05","01","91.0.00.00000","000",{"v":6040,"d":"6040.0"}]
["Непрограммные расходы органов местного самоуправления за счет средств местного бюджета","05","01","91.1.00.00000","000",{"v":6040,"d":"6040.0"}]
["Осуществление органами местного самоуправления полномочий местного значения поселения","05","01","91.1.00.60000","000",{"v":6040,"d":"6040.0"}]
["Текущий ремонт в сфере установленных функций","05","01","91.1.00.60009","000",{"v":6040,"d":"6040.0"}]
["Закупка товаров, работ и услуг для обеспечения государственных (муниципальных) нужд","05","01","91.1.00.60009","200",{"v":6040,"d":"6040.0"}]
["Иные закупки товаров, работ и услуг для обеспечения государственных (муниципальных) нужд","05","01","91.1.00.60009","240",{"v":6040,"d":"6040.0"}]
["Прочая закупка товаров, работ и услуг для обеспечения государственных (муниципальных) нужд","05","01","91.1.00.60009","244",{"$f":"40+6000","v":{"v":6040,"d":"6040.0"}}]
["Коммунальное хозяйство","05","02","00.0.00.00000","000",{"$f":"F136","v":{"v":5434.699999999999,"d":"5434.7"}}]
["Непрограммные расходы органов местного самоуправления","05","02","91.0.00.00000","000",{"$f":"F138","v":{"v":5434.699999999999,"d":"5434.7"}}]
["Непрограммные расходы органов местного самоуправления за счет средств местного бюджета","05","02","91.1.00.00000","000",{"$f":"F138","v":{"v":5434.699999999999,"d":"5434.7"}}]
["Осуществление органами местного самоуправления полномочий местного значения поселения","05","02","91.1.00.60000","000",{"$f":"F139","v":{"v":5434.699999999999,"d":"5434.7"}}]
["Иные мероприятия и сфере установленных функций","05","02","91.1.00.60011","000",{"$f":"F140","v":{"v":5434.699999999999,"d":"5434.7"}}]
["Закупка товаров, работ и услуг для обеспечения государственных (муниципальных) нужд","05","02","91.1.00.60011","200",{"$f":"F141","v":{"v":5434.699999999999,"d":"5434.7"}}]
["Иные закупки товаров, работ и услуг для обеспечения государственных (муниципальных) нужд","05","02","91.1.00.60011","240",{"$f":"F143+F142","v":{"v":5434.699999999999,"d":"5434.7"}}]
["Закупка товаров, работ и услуг в целях капитального ремонта государственного (муниципального) имущества","05","02","91.1.00.60011","243",{"$f":"6800-2966","v":{"v":3834,"d":"3834.0"}}]
["Прочая закупка товаров, работ и услуг для обеспечения государственных (муниципальных) нужд","05","02","91.1.00.60011","244",{"$f":"7400+1000+0.3+0.4-6800","v":{"v":1600.699999999999,"d":"1600.7"}}]
["Благоустройство","05","03","00.0.00.00000","000",{"$f":"F145","v":{"v":12115,"d":"12115.0"}}]
["Непрограммные расходы органов местного самоуправления","05","03","91.0.00.00000","000",{"$f":"F146","v":{"v":12115,"d":"12115.0"}}]
["Непрограммные расходы органов местного самоуправления за счет средств местного бюджета","05","03","91.1.00.00000","000",{"$f":"F147","v":{"v":12115,"d":"12115.0"}}]
["Осуществление органами местного самоуправления полномочий местного значения поселения","05","03","91.1.00.60000","000",{"$f":"F148","v":{"v":12115,"d":"12115.0"}}]
["Мероприятия в области жилищно-коммунального хозяйства","05","03","91.1.00.60100","000",{"$f":"F149+F155+F169","v":{"v":12115,"d":"12115.0"}}]
["Уличное освещение","05","03","91.1.00.60101","000",{"$f":"F150+F153","v":2362.3}]
["Закупка товаров, работ и услуг для обеспечения государственных (муниципальных) нужд","05","03","91.1.00.60101","200",{"$f":"F151","v":2362.3}]
["Иные закупки товаров, работ и услуг для обеспечения государственных (муниципальных) нужд","05","03","91.1.00.60101","240",{"$f":"F152","v":2362.3}]
["Прочая закупка товаров, работ и услуг для обеспечения государственных (муниципальных) нужд","05","03","91.1.00.60101","244",{"$f":"1362.3+600+400","v":2362.3}]
["Иные бюджетные ассигнования","05","03","91.1.00.60101","800",{"$f":"F154","v":{"v":0,"d":"0.0"}}]
["Уплата иных платежей","05","03","91.1.00.60001","853",{"v":0,"d":"0.0"}]
["Прочие  мероприятия по благоустройству городских округов и поселений ","05","03","91.1.00.60105","000",{"$f":"F156+F159","v":8972.4}]
["Закупка товаров, работ и услуг для обеспечения государственных (муниципальных) нужд","05","03","91.1.00.60105","200",{"$f":"F157","v":6472.4}]
["Иные закупки товаров, работ и услуг для обеспечения государственных (муниципальных) нужд","05","03","91.1.00.60105","240",{"$f":"F158","v":6472.4}]
["Прочая закупка товаров, работ и услуг для обеспечения государственных (муниципальных) нужд","05","03","91.1.00.60105","244",{"$f":"7472.4-1000","v":6472.4}]
["Непрограммные расходы органов местного самоуправления за счет средств областного бюджета","05","03","91.4.00.S2370","000",{"$f":"F160+F164","v":{"v":2500,"d":"2500.0"}}]
["Субсидии на реализацию мероприятий перечня проектов народных инициатив за счет областного бюджета","05","03","91.4.00.S2370","000",{"$f":"F161","v":{"v":2500,"d":"2500.0"}}]
["Закупка товаров, работ и услуг для обеспечения государственных (муниципальных) нужд","05","03","91.4.00.S2370","200",{"$f":"F162","v":{"v":2500,"d":"2500.0"}}]
["Иные закупки товаров, работ и услуг для обеспечения государственных (муниципальных) нужд","05","03","91.4.00.S2370","240",{"$f":"F163","v":{"v":2500,"d":"2500.0"}}]
["Прочая закупка товаров, работ и услуг для обеспечения государственных (муниципальных) нужд","05","03","91.4.00.S2370","244",{"$f":"2250+250","v":{"v":2500,"d":"2500.0"}}]
["Субсидии на выравнивание обеспеченности муниципальных образований Иркутской области по реализации ими их отдельных расходных обязательств","05","03","91.1.00.60115","000",{"$f":"F165","v":{"v":0,"d":"0.0"}}]
["Закупка товаров, работ и услуг для обеспечения государственных (муниципальных) нужд","05","03","91.1.00.60116","200",{"$f":"F166","v":{"v":0,"d":"0.0"}}]
["Иные закупки товаров, работ и услуг для обеспечения государственных (муниципальных) нужд","05","03","91.1.00.60117","240",{"$f":"F167","v":{"v":0,"d":"0.0"}}]
["Прочая закупка товаров, работ и услуг для обеспечения государственных (муниципальных) нужд","05","03","91.1.00.60118","244"]
["Субсидии юридическим лицам (кроме некоммерческих организаций), индивидуальным предпринимателям, физическим лицам – производителям товаров, работ, услуг","05","03","91.1.00.60100","810",{"$f":"F169","v":{"v":780.3000000000002,"d":"780.3"}}]
["Субсидии на возмещение недополученных доходов и (или) возмещение фактически понесенных затрат в связи с производством (реализацией) товаров, выполнением работ, оказанием услуг ","05","03","91.1.00.60105","811",{"$f":"3697.4-2917.1","v":{"v":780.3000000000002,"d":"780.3"}}]
["КУЛЬТУРА, КИНЕМАТОГРАФИЯ","08","00","00.0.00.00000","000",{"$f":"F171","v":19047.2}]
["КУЛЬТУРА","08","01","91.0.00.00000","000",{"$f":"F172+F178+F185","v":19047.2}]
["Непрограммные расходы органов местного самоуправления","08","01","91.1.00.00000","000",{"$f":"F173","v":{"v":13224,"d":"13224.0"}}]
["Осуществление органами местного самоуправления полномочий местного значения поселения","08","01","91.1.00.60002","000",{"$f":"F174","v":{"v":13224,"d":"13224.0"}}]
["Расходы на выплату персоналу в целях обеспечения выполнения функций государственными (муниципальными) органами, казенными учреждениями, органами управления государственными внебюджетными фондами","08","01","91.1.00.60002","100",{"$f":"F175","v":{"v":13224,"d":"13224.0"}}]
["Расходы на выплату персоналу казенных учреждений","08","01","91.1.00.60002","110",{"$f":"F176+F177","v":{"v":13224,"d":"13224.0"}}]
["Фонд оплаты труда казенных учреждений и взносы по обязательному социальному страхованию","08","01","91.1.00.60002","111",{"$f":"10659-2088.1+1396","v":9966.9},null,1396]
["Взносы по обязательному социальному страхованию на выплаты по оплате труда работников и иные выплаты работникам учреждений","08","01","91.1.00.60002","119",{"$f":"3219-565.9+604","v":3257.1},null,604]
["Непрограммные расходы органов местного самоуправления","08","01","91.0.00.00000","000",{"$f":"F179","v":5690.2}]
["Непрограммные расходы органов местного самоуправления за счет средств местного бюджета","08","01","91.1.00.00000","000",5690.2]
["Осуществление органами местного самоуправления полномочий местного значения поселения","08","01","91.1.00.60000","000",5690.2]
["Обеспечение деятельности в сфере установленных функции бюджетных, автономных и казенных учреждений","08","01","91.1.00.60002","000",5690.2]
["Закупка товаров, работ и услуг для обеспечения государственных (муниципальных) нужд","08","01","91.1.00.60002","200",5690.2]
["Иные закупки товаров, работ и услуг для обеспечения государственных (муниципальных) нужд","08","01","91.1.00.60002","240",5690.2]
["Прочая закупка товаров, работ и услуг для обеспечения государственных (муниципальных) нужд","08","01","91.1.00.60002","244",{"$f":"3373.2+600-12+450+400-21+1000-100","v":5690.2}]
["Иные бюджетные ассигнования","08","01","91.1.00.60002","850",{"$f":"F187+F186","v":{"v":133,"d":"133.0"}}]
["Уплата прочих налогов, сборов","08","01","91.1.00.60002","852",{"v":8,"d":"8.0"}]
["Уплата иных платежей","08","01","91.1.00.60002","853",{"$f":"25+100","v":{"v":125,"d":"125.0"}}]
["СОЦИАЛЬНАЯ ПОЛИТИКА","10","00","00.0.00.00000","000",{"$f":"F189","v":244.7}]
["Пенсионное обеспечение","10","01","00.0.00.00000","000",244.7]
["Непрограммные расходы органов местного самоуправления","10","01","91.0.00.00000","000",244.7]
["Непрограммные расходы органов местного самоуправления за счет средств местного бюджета","10","01","91.1.00.00000","000",244.7]
["Осуществление органами местного самоуправления полномочий местного значения поселения","10","01","91.1.00.60000","000",244.7]
["Доплаты к пенсиям муниципальных служащих","10","01","91.1.00.60018","000",244.7]
["Социальное обеспечение и иные выплаты населению","10","01","91.1.00.60018","300",244.7]
["Публичные нормативные социальные выплаты гражданам","10","01","91.1.00.60018","310",244.7]
["Иные пенсии, социальные доплаты к пенсиям","10","01","91.1.00.60018","312",244.7]
["ФИЗИЧЕСКАЯ КУЛЬТУРА И СПОРТ","11","00","00.0.00.00000","000",{"$f":"F198","v":{"$error":"#REF!"}}]
["Другие вопросы в области физической культуры и спорта","11","05","00.0.00.00000","000",{"$error":"#REF!"}]
["Непрограммные расходы органов местного самоуправления","11","05","91.0.00.00000","000",{"$error":"#REF!"}]
["Непрограммные расходы органов местного самоуправления за счет средств местного бюджета","11","05","91.1.00.00000","000",{"$error":"#REF!"}]
["Осуществление органами местного самоуправления полномочий местного значения поселения","11","05","91.1.00.60000","000",{"$error":"#REF!"}]
["Обеспечение деятельности в сфере установленных функции бюджетных, автономных и казенных учреждений","11","05","91.1.00.60002","000",{"$error":"#REF!"}]
["Закупка товаров, работ и услуг для обеспечения государственных (муниципальных) нужд","11","05","91.1.00.60002","200",{"$error":"#REF!"}]
["Иные закупки товаров, работ и услуг для обеспечения государственных (муниципальных) нужд","11","05","91.1.00.60002","240",{"$f":"#REF!","v":{"$error":"#REF!"}}]
["МЕЖБЮДЖЕТНЫЕ ТРАНСФЕРТЫ БЮДЖЕТАМ БЮДЖЕТНОЙ СИСТЕМЫ РФ","14","00","00.0.00.00000","000",{"$f":"F206","v":259.2}]
["Прочие межбюджетные трансферты общего характера ","14","03","00.0.00.00000","000",{"$f":"F207","v":259.2}]
["Непрограммые расходы органов местного самоуправления ","14","03","91.0.00.00000","000",259.2]
["Непрограммые расходы органов местного самоуправления за счет средств местного бюджета","14","03","91.1.00.00000","000",259.2]
["Осуществление органами местного самоуправления полномочий местного значения поселения","14","03","91.1.00.60000","000",259.2]
["Иные межбюджетные трансферты","14","03","91.1.00.60020","000",259.2]
["Выполнение функций органами местного самоуправления","14","03","91.1.00.60020","500",259.2]
["Иные межбюджетные трансферты","14","03","91.1.00.60020","540",259.2]
["МЕЖБЮДЖЕТНЫЕ ТРАНСФЕРТЫ ОБЩЕГО ХАРАКТЕРА БЮДЖЕТАМ СУБЪЕКТОВ РОССИЙСКОЙ ФЕДЕРАЦИИ И МУНИЦИПАЛЬНЫХ ОБРАЗОВАНИЙ ","14","00","00.0.00.00000","000",{"$f":"F214","v":{"$error":"#REF!"}}]
["Прочие межбюджетные трансферты общего характера ","14","03","00.0.00.00000","000",{"$error":"#REF!"}]
["Непрограммные расходы органов местного самоуправления","14","03","91.0.00.00000","000",{"$error":"#REF!"}]
["Непрограммные расходы органов местного самоуправления за счет средств местного бюджета","14","03","91.1.00.00000","000",{"$error":"#REF!"}]
["Осуществление органами местного самоуправления полномочий местного значения поселения","14","03","91.1.00.60000","000",{"$error":"#REF!"}]
["Иные межбюджетные трансферты","14","03","91.1.00.60020","000",{"$error":"#REF!"}]
["Межбюджетные трансферты","14","03","91.1.00.60020","500",{"$f":"#REF!","v":{"$error":"#REF!"}}]